fUSD/lending_fUSD_20260406
["ID","MTS","AMOUNT","RATE_DAILY","PERIOD"]
[419916604,1775505039524,-250.0,0.00013,2]
[419916605,1775505039533,-200.0,0.00013074,2]
[419916606,1775505039542,-20244.28432197,0.00013091,2]
[419916607,1775505039552,-158.44,0.00013097,2]
[419916608,1775505039561,-500.0,0.000131,2]
[419916609,1775505039570,-16233.27765337,0.00013158,2]
[419916610,1775505039579,-2351.0,0.00013168,2]
[419916611,1775505039588,-150.0,0.00013169,2]
[419916612,1775505039598,-152.0,0.00013191,7]
[419916613,1775505039607,-195.55873735,0.00013223,2]
[419916614,1775505039617,-2000.0,0.00013385,2]
[419916615,1775505039626,-334.157807,0.00013424,2]
[419916616,1775505039636,-259.22545,0.00013424,2]
[419916617,1775505039645,-160.0,0.00013425,2]
[419916618,1775505039654,-212.535592,0.00013425,2]
[419916619,1775505039663,-265.071184,0.00013425,2]
[419916620,1775505039672,-160.0,0.00013425,2]
[419916621,1775505039682,-410.386682,0.00013425,2]
[419916622,1775505039691,-660.773364,0.00013425,2]
[419916623,1775505039701,-3240.0,0.00013425,2]
[419916624,1775505039710,-152.0,0.00013426,8]
[419916625,1775505039719,-500.0,0.00013452,2]
[419916626,1775505039729,-20244.28432197,0.00013559,2]
[419916627,1775505039738,-433.0,0.00013577,2]
[419916628,1775505039747,-520.35317017,0.00013598,2]
[419916629,1775505039756,-16233.27765337,0.00013615,2]
[419916630,1775505039766,-200.0,0.00013622,2]
[419916631,1775505039775,-152.0,0.0001366,9]
[419916632,1775505039784,-151.0,0.00013695,2]
[419916633,1775505039793,-500.0,0.00013698,2]
[419916634,1775505039803,-500.0,0.00013698,2]
[419916635,1775505039812,-500.0,0.00013698,2]
[419916636,1775505039822,-500.0,0.00013698,2]
[419916637,1775505039831,-500.0,0.00013698,2]
[419916638,1775505039840,-500.0,0.00013698,2]
[419916639,1775505039850,-500.0,0.00013698,2]
[419916640,1775505039859,-500.0,0.00013698,2]
[419916641,1775505039868,-365.94244918,0.00013698,2]
[419916642,1775505039878,-500.0,0.00013698,2]
[419916643,1775505039887,-500.0,0.00013698,2]
[419916644,1775505039896,-500.0,0.00013698,2]
[419916645,1775505039905,-500.0,0.00013698,2]
[419916646,1775505039915,-500.0,0.00013698,2]
[419916647,1775505039924,-500.0,0.00013698,2]
[419916648,1775505039933,-500.0,0.00013698,2]
[419916649,1775505039942,-500.0,0.00013698,2]
[419916650,1775505039951,-500.0,0.00013698,2]
[419916651,1775505039961,-500.0,0.00013698,2]
[419916652,1775505039971,-500.0,0.00013698,2]
[419916653,1775505039980,-500.0,0.00013698,2]
[419916654,1775505039989,-500.0,0.00013698,2]
[419916655,1775505039999,-500.0,0.00013698,2]
[419916656,1775505040009,-500.0,0.00013698,2]
[419916657,1775505040018,-500.0,0.00013698,2]
[419916658,1775505040027,-500.0,0.00013698,2]
[419916659,1775505040036,-500.0,0.00013698,2]
[419916660,1775505040045,-500.0,0.00013698,2]
[419916661,1775505040054,-500.0,0.00013698,2]
[419916662,1775505040063,-500.0,0.00013698,2]
[419916663,1775505040072,-500.0,0.00013698,2]
[419916664,1775505040082,-500.0,0.00013698,2]
[419916665,1775505040090,-500.0,0.00013698,2]
[419916666,1775505040100,-500.0,0.00013698,2]
[419916667,1775505040109,-500.0,0.00013698,2]
[419916668,1775505040118,-500.0,0.00013698,2]
[419916669,1775505040127,-500.0,0.00013698,2]
[419916670,1775505040136,-500.0,0.00013698,2]
[419916671,1775505040144,-500.0,0.00013698,2]
[419916672,1775505040153,-500.0,0.00013698,2]
[419916673,1775505040162,-500.0,0.00013698,2]
[419916674,1775505040171,-500.0,0.00013698,2]
[419916675,1775505040180,-500.0,0.00013698,2]
[419916676,1775505040189,-500.0,0.00013698,2]
[419916677,1775505040198,-500.0,0.00013698,2]
[419916678,1775505040208,-502.76097898,0.00013698,2]
[419916679,1775505040217,-500.0,0.00013698,2]
[419916680,1775505040226,-500.0,0.00013698,2]
[419916681,1775505040236,-500.0,0.00013698,2]
[419916682,1775505040245,-500.0,0.00013698,2]
[419916683,1775505040254,-500.0,0.00013698,2]
[419916684,1775505040264,-500.0,0.00013698,2]
[419916685,1775505040273,-500.0,0.00013698,2]
[419916686,1775505040283,-500.0,0.00013698,2]
[419916687,1775505040291,-500.0,0.00013698,2]
[419916688,1775505040300,-500.0,0.00013698,2]
[419916689,1775505040310,-500.0,0.00013698,2]
[419916690,1775505040319,-500.0,0.00013698,2]
[419916691,1775505040327,-500.0,0.00013698,2]
[419916692,1775505040336,-500.0,0.00013698,2]
[419916693,1775505040346,-500.0,0.00013698,2]
[419916694,1775505040356,-500.0,0.00013698,2]
[419916695,1775505040365,-500.0,0.00013698,2]
[419916696,1775505040374,-500.0,0.00013698,2]
[419916697,1775505040384,-500.0,0.00013698,2]
[419916698,1775505040393,-500.0,0.00013698,2]
[419916699,1775505040402,-500.0,0.00013698,2]
[419916700,1775505040411,-500.0,0.00013698,2]
[419916701,1775505040421,-500.0,0.00013698,2]
[419916702,1775505040430,-500.0,0.00013698,2]
[419916703,1775505040439,-500.0,0.00013698,2]
[419916704,1775505040449,-500.0,0.00013698,2]
[419916705,1775505040458,-500.0,0.00013698,2]
[419916706,1775505040467,-810.24,0.00013698,2]
[419916707,1775505040477,-500.0,0.00013698,2]
[419916708,1775505040486,-500.0,0.00013698,2]
[419916709,1775505040495,-500.0,0.00013698,2]
[419916710,1775505040504,-500.0,0.00013698,2]
[419916711,1775505040793,-500.0,0.00013698,2]
[419916712,1775505040840,-500.0,0.00013698,2]
[419916713,1775505040850,-500.0,0.00013698,2]
[419916714,1775505040859,-500.0,0.00013698,2]
[419916715,1775505040868,-500.0,0.00013698,2]
[419916716,1775505040878,-500.0,0.00013698,2]
[419916717,1775505040887,-500.0,0.00013698,2]
[419916718,1775505040896,-500.0,0.00013698,2]
[419916719,1775505040905,-500.0,0.00013698,2]
[419916720,1775505040914,-500.0,0.00013698,2]
[419916721,1775505040923,-559.50723655,0.00013698,2]
[419916722,1775505040933,-500.0,0.00013698,2]
[419916723,1775505040942,-500.0,0.00013698,2]
[419916724,1775505040951,-500.0,0.00013698,2]
[419916725,1775505040960,-500.0,0.00013698,2]
[419916726,1775505040969,-500.0,0.00013698,2]
[419916727,1775505040978,-500.0,0.00013698,2]
[419916728,1775505040987,-500.0,0.00013698,2]
[419916729,1775505040996,-500.0,0.00013698,2]
[419916730,1775505041005,-500.0,0.00013698,2]
[419916731,1775505041014,-503.57594394,0.00013698,2]
[419916732,1775505041023,-500.0,0.00013698,2]
[419916733,1775505041032,-500.0,0.00013698,2]
[419916734,1775505041041,-500.0,0.00013698,2]
[419916735,1775505041050,-334.02643621,0.00013698,2]
[419916736,1775505041058,-500.0,0.00013698,2]
[419916737,1775505041068,-500.0,0.00013698,2]
[419916738,1775505041077,-500.0,0.00013698,2]
[419916739,1775505041086,-500.0,0.00013698,2]
[419916740,1775505041095,-500.0,0.00013698,2]
[419916741,1775505041103,-500.0,0.00013698,2]
[419916742,1775505041112,-500.0,0.00013698,2]
[419916743,1775505041121,-500.0,0.00013698,2]
[419916744,1775505041130,-500.0,0.00013698,2]
[419916745,1775505041140,-500.0,0.00013698,2]
[419916746,1775505041149,-500.0,0.00013698,2]
[419916747,1775505041158,-500.0,0.00013698,2]
[419916748,1775505041167,-186.12488173,0.00013698,2]
[419916749,1775505041176,-500.0,0.00013698,2]
[419916750,1775505041186,-500.0,0.00013698,2]
[419916751,1775505041195,-500.0,0.00013698,2]
[419916752,1775505041204,-500.0,0.00013698,2]
[419916753,1775505041214,-500.0,0.00013698,2]
[419916754,1775505041223,-500.0,0.00013698,2]
[419916755,1775505041232,-500.0,0.00013698,2]
[419916756,1775505041241,-500.0,0.00013698,2]
[419916757,1775505041250,-500.0,0.00013698,2]
[419916758,1775505041259,-500.0,0.00013698,2]
[419916759,1775505041268,-500.0,0.00013698,2]
[419916760,1775505041277,-507.01970036,0.00013698,2]
[419916761,1775505041287,-228.23268139,0.00013699,2]
[419916762,1775505041295,-150.0,0.00013699,2]
[419916763,1775505041304,-150.0,0.00013699,2]
[419916764,1775505041314,-150.0,0.00013699,2]
[419916765,1775505041323,-150.0,0.00013699,2]
[419916766,1775505041332,-166.66,0.00013699,2]
[419916767,1775505041342,-466.57,0.00013699,2]
[419916768,1775505041351,-1400.02,0.00013699,2]
[419916769,1775505041360,-3844.31,0.000137,2]
[419916770,1775505041369,-3844.31,0.000137,2]
[419916771,1775505041379,-206.44,0.000137,2]
[419916772,1775505041388,-206.44,0.000137,2]
[419916773,1775505041397,-206.44,0.000137,2]
[419916774,1775505041406,-160.0,0.00013728,7]
[419916775,1775505041416,-770.710123,0.00013728,7]
[419916776,1775505041425,-1381.420246,0.00013728,7]
[419916777,1775505041434,-204.807026,0.00013728,7]
[419916778,1775505041443,-199.480472,0.00013728,2]
[419916779,1775505041452,-155.50014246,0.00013802,2]
[419916780,1775505041461,-166.66,0.00013873,2]
[419916781,1775505041470,-195.55873735,0.00013892,2]
[419916782,1775505041479,-152.0,0.00013894,10]
[419916783,1775505041488,-10200.0,0.000139,5]
[419916784,1775505041498,-200.0787906,0.00013908,2]
[419916785,1775505041508,-810.24,0.00013972,2]
[419916786,1775505041517,-150.0,0.00013973,2]
[419916787,1775505041526,-150.0,0.00013973,2]
[419916788,1775505041535,-150.0,0.00013973,2]
[419916789,1775505041544,-855.85192254,0.00014006,2]
[419916790,1775505041553,-150.9432443,0.00014008,2]
[419916791,1775505041563,-2711.2123268,0.00014008,2]
[419916792,1775505041572,-3022.3985964,0.00014008,2]
[419916793,1775505041582,-112200.36345171,0.00014008,2]
[419916797,1775505041796,-347.795,0.00013493,2]
[419916798,1775505041807,-1909.78841244,0.00013493,2]
[419916799,1775505041816,-206.44,0.000137,2]
[419916800,1775505041826,-206.44,0.000137,2]
[419916801,1775505041835,-401258.67942289,0.00014008,2]
[419916802,1775505041845,-2433.4151744,0.00014008,2]
[419916803,1775505041854,-20244.28432197,0.00014028,2]
[419916804,1775505041863,-500.0,0.00014042,2]
[419916805,1775505041875,-166.66,0.00014047,2]
[419916806,1775505041884,-16233.27765337,0.00014072,2]
[419916807,1775505041893,-1300.0,0.00014082,2]
[419916808,1775505041904,-3000.0,0.00014082,2]
[419916809,1775505041913,-289.821262,0.00014096,7]
[419916810,1775505041922,-559.618202,0.00014096,7]
[419916811,1775505041931,-188.4961,0.000141,2]
[419916812,1775505041940,-152.0,0.00014128,11]
[419916813,1775505041950,-500.0,0.00014159,2]
[419916814,1775505041959,-500.0,0.00014159,2]
[419916815,1775505041968,-500.0,0.00014159,2]
[419916816,1775505041978,-500.0,0.00014159,2]
[419916817,1775505041987,-500.0,0.00014159,2]
[419916818,1775505041996,-500.0,0.00014159,2]
[419916819,1775505042005,-500.0,0.00014159,2]
[419916820,1775505042014,-500.0,0.00014159,2]
[419916821,1775505042024,-200.0,0.0001417,2]
[419916822,1775505042033,-1600.0,0.00014175,2]
[419916823,1775505042042,-166.66,0.00014221,2]
[419916824,1775505042052,-1500.0,0.00014225,2]
[419916825,1775505042061,-810.24,0.00014246,2]
[419916826,1775505042070,-150.0,0.00014247,2]
[419916827,1775505042079,-150.0,0.00014247,2]
[419916828,1775505042088,-150.0,0.00014247,2]
[419916829,1775505042097,-152.0,0.00014362,12]
[419916830,1775505042106,-250.0,0.00014381,2]
[419916831,1775505042115,-466.57,0.00014384,2]
[419916832,1775505042125,-166.66,0.00014395,2]
[419916833,1775505042134,-1727.0,0.000144,2]
[419916834,1775505042143,-2811.0,0.000144,2]
[419916835,1775505042152,-2811.0,0.000144,2]
[419916836,1775505042162,-1050.968349,0.00014414,7]
[419916837,1775505042171,-985.59,0.00014465,2]
[419916838,1775505042180,-151.0,0.0001447,2]
[419916839,1775505042189,-151.0,0.0001447,2]
[419916840,1775505042198,-914.8218,0.0001447,2]
[419916841,1775505042207,-151.0,0.0001447,2]
[419916842,1775505042216,-914.8218,0.0001447,2]
[419916843,1775505042225,-151.0,0.0001447,2]
[419916844,1775505042234,-261.551929,0.0001447,2]
[419916845,1775505042244,-151.0,0.0001447,2]
[419916846,1775505042253,-914.8218,0.0001447,2]
[419916847,1775505042262,-764.02772,0.0001447,2]
[419916848,1775505042271,-261.551929,0.0001447,2]
[419916849,1775505042280,-914.8218,0.0001447,2]
[419916850,1775505042290,-2647.791397,0.0001447,2]
[419916851,1775505042299,-764.02772,0.0001447,2]
[419916852,1775505042308,-280.584218,0.0001447,2]
[419916853,1775505042317,-261.551929,0.0001447,2]
[419916854,1775505042327,-2647.791397,0.0001447,2]
[419916855,1775505042337,-764.02772,0.0001447,2]
[419916856,1775505042346,-280.584218,0.0001447,2]
[419916857,1775505042356,-261.551929,0.0001447,2]
[419916858,1775505042365,-2647.791397,0.0001447,2]
[419916859,1775505042374,-764.02772,0.0001447,2]
[419916860,1775505042384,-151.0,0.0001447,2]
[419916861,1775505042393,-280.584218,0.0001447,2]
[419916862,1775505042402,-2647.791397,0.0001447,2]
[419916863,1775505042411,-280.584218,0.0001447,2]
[419916864,1775505042421,-766.93164,0.0001447,2]
[419916865,1775505042430,-186.094504,0.0001447,2]
[419916866,1775505042439,-436.880734,0.0001447,2]
[419916867,1775505042449,-766.93164,0.0001447,2]
[419916868,1775505042458,-436.880734,0.0001447,2]
[419916869,1775505042467,-766.93164,0.0001447,2]
[419916870,1775505042476,-151.0,0.0001447,2]
[419916871,1775505042485,-436.880734,0.0001447,2]
[419916872,1775505042494,-766.93164,0.0001447,2]
[419916873,1775505042503,-436.880734,0.0001447,2]
[419916874,1775505042512,-151.0,0.0001447,2]
[419916875,1775505042521,-190.410851,0.0001447,2]
[419916876,1775505042531,-658.929163,0.0001447,2]
[419916877,1775505042540,-596.965585,0.0001447,2]
[419916878,1775505042549,-190.410851,0.0001447,2]
[419916879,1775505042559,-658.929163,0.0001447,2]
[419916880,1775505042568,-596.965585,0.0001447,2]
[419916881,1775505042578,-190.410851,0.0001447,2]
[419916882,1775505042587,-596.965585,0.0001447,2]
[419916883,1775505042597,-658.929163,0.0001447,2]
[419916884,1775505042606,-596.965585,0.0001447,2]
[419916885,1775505042616,-658.929163,0.0001447,2]
[419916886,1775505042626,-151.0,0.0001447,2]
[419916887,1775505042635,-1519.04079,0.0001447,2]
[419916888,1775505042645,-151.0,0.0001447,2]
[419916889,1775505042655,-416.609906,0.0001447,2]
[419916890,1775505042664,-1519.04079,0.0001447,2]
[419916891,1775505042674,-416.609906,0.0001447,2]
[419916892,1775505042683,-155.71659,0.0001447,2]
[419916893,1775505042693,-1519.04079,0.0001447,2]
[419916894,1775505042703,-232.234571,0.0001447,2]
[419916895,1775505042712,-520.378138,0.0001447,2]
[419916896,1775505042721,-190.410851,0.0001447,2]
[419916897,1775505042731,-416.609906,0.0001447,2]
[419916898,1775505042740,-155.71659,0.0001447,2]
[419916899,1775505042750,-1519.04079,0.0001447,2]
[419916900,1775505042760,-225.159939,0.0001447,2]
[419916901,1775505042769,-232.234571,0.0001447,2]
[419916902,1775505042779,-520.378138,0.0001447,2]
[419916903,1775505042788,-151.0,0.0001447,2]
[419916904,1775505042798,-416.609906,0.0001447,2]
[419916905,1775505042807,-155.71659,0.0001447,2]
[419916906,1775505042816,-151.0,0.0001447,2]
[419916907,1775505042826,-225.159939,0.0001447,2]
[419916908,1775505042835,-232.234571,0.0001447,2]
[419916909,1775505042844,-520.378138,0.0001447,2]
[419916910,1775505042853,-155.71659,0.0001447,2]
[419916911,1775505042862,-151.0,0.0001447,2]
[419916912,1775505042872,-225.159939,0.0001447,2]
[419916913,1775505042882,-151.0,0.0001447,2]
[419916914,1775505042892,-232.234571,0.0001447,2]
[419916915,1775505042902,-520.378138,0.0001447,2]
[419916916,1775505042911,-151.0,0.0001447,2]
[419916917,1775505042921,-225.159939,0.0001447,2]
[419916918,1775505042930,-151.0,0.0001447,2]
[419916919,1775505042940,-192.264196,0.0001447,2]
[419916920,1775505042949,-151.0,0.0001447,2]
[419916921,1775505042958,-300.261063,0.0001447,2]
[419916922,1775505042967,-151.0,0.0001447,2]
[419916923,1775505042976,-192.264196,0.0001447,2]
[419916924,1775505042984,-151.0,0.0001447,2]
[419916925,1775505042993,-192.264196,0.0001447,2]
[419916926,1775505043002,-300.261063,0.0001447,2]
[419916927,1775505043011,-151.0,0.0001447,2]
[419916928,1775505043020,-300.261063,0.0001447,2]
[419916929,1775505043030,-192.264196,0.0001447,2]
[419916930,1775505043039,-454.96662,0.0001447,2]
[419916931,1775505043048,-300.261063,0.0001447,2]
[419916932,1775505043057,-454.96662,0.0001447,2]
[419916933,1775505043067,-454.96662,0.0001447,2]
[419916934,1775505043077,-454.96662,0.0001447,2]
[419916935,1775505043086,-310.015346,0.0001447,2]
[419916936,1775505043095,-310.015346,0.0001447,2]
[419916937,1775505043104,-254.207423,0.0001447,2]
[419916938,1775505043113,-234.889848,0.0001447,2]
[419916939,1775505043122,-310.015346,0.0001447,2]
[419916940,1775505043131,-254.207423,0.0001447,2]
[419916941,1775505043142,-310.015346,0.0001447,2]
[419916942,1775505043152,-151.0,0.0001447,2]
[419916944,1775505043163,-191.515392,0.0001447,2]
[419916946,1775505043173,-191.515392,0.0001447,2]
[419916948,1775505043183,-254.207423,0.0001447,2]
[419916949,1775505043193,-151.0,0.0001447,2]
[419916950,1775505043204,-163.951386,0.0001447,2]
[419916951,1775505043214,-151.0,0.0001447,2]
[419916952,1775505043223,-191.515392,0.0001447,2]
[419916953,1775505043235,-162.535463,0.0001447,2]
[419916954,1775505043245,-387.488501,0.0001447,2]
[419916955,1775505043255,-254.207423,0.0001447,2]
[419916956,1775505043266,-163.951386,0.0001447,2]
[419916957,1775505043276,-151.0,0.0001447,2]
[419916958,1775505043286,-191.515392,0.0001447,2]
[419916959,1775505043297,-162.535463,0.0001447,2]
[419916960,1775505043307,-387.488501,0.0001447,2]
[419916961,1775505043317,-163.951386,0.0001447,2]
[419916962,1775505043327,-234.889848,0.0001447,2]
[419916963,1775505043337,-162.535463,0.0001447,2]
[419916964,1775505043347,-151.0,0.0001447,2]
[419916965,1775505043357,-387.488501,0.0001447,2]
[419916966,1775505043367,-163.951386,0.0001447,2]
[419916967,1775505043378,-234.889848,0.0001447,2]
[419916968,1775505043388,-162.535463,0.0001447,2]
[419916969,1775505043398,-151.0,0.0001447,2]
[419916970,1775505043409,-387.488501,0.0001447,2]
[419916971,1775505043419,-234.889848,0.0001447,2]
[419916972,1775505043429,-151.0,0.0001447,2]
[419916973,1775505043440,-151.0,0.0001447,2]
[419916974,1775505043449,-151.0,0.0001447,2]
[419916975,1775505043460,-3523.0,0.0001447,2]
[419916976,1775505043471,-1057.831,0.0001447,2]
[419916977,1775505043481,-622.0,0.0001447,2]
[419916978,1775505043491,-1263.0,0.0001447,2]
[419916979,1775505043501,-150.679,0.0001447,2]
[419916980,1775505043511,-925.0,0.0001447,2]
[419916981,1775505043521,-1221.85,0.0001447,2]
[419916982,1775505043531,-508.398,0.0001447,2]
[419916983,1775505043541,-6021.0,0.0001447,2]
[419916984,1775505043551,-3771.0,0.0001447,2]
[419916985,1775505043561,-3292.0,0.00014485,2]
[419916986,1775505043571,-20244.28432197,0.00014496,2]
[419916987,1775505043581,-810.24,0.0001452,2]
[419916988,1775505043592,-16233.27765337,0.00014529,2]
[419916989,1775505043602,-586.836056,0.00014529,2]
[419916990,1775505043612,-151.0,0.00014529,2]
[419916991,1775505043623,-402.8195,0.00014529,2]
[419916992,1775505043634,-586.836056,0.00014529,2]
[419916993,1775505043644,-402.8195,0.00014529,2]
[419916994,1775505043654,-151.0,0.00014529,2]
[419916995,1775505043665,-586.836056,0.00014529,2]
[419916996,1775505043677,-245.770064,0.00014529,2]
[419916997,1775505043688,-402.8195,0.00014529,2]
[419916998,1775505043698,-151.0,0.00014529,2]
[419916999,1775505043708,-586.836056,0.00014529,2]
[419917000,1775505043718,-245.770064,0.00014529,2]
[419917001,1775505043728,-402.8195,0.00014529,2]
[419917002,1775505043739,-151.0,0.00014529,2]
[419917003,1775505043749,-151.0,0.00014529,2]
[419917004,1775505043759,-151.0,0.00014529,2]
[419917005,1775505043769,-245.770064,0.00014529,2]
[419917006,1775505043779,-151.0,0.00014529,2]
[419917007,1775505043789,-151.0,0.00014529,2]
[419917008,1775505043799,-245.770064,0.00014529,2]
[419917009,1775505043809,-195.55873735,0.00014561,2]
[419917010,1775505043819,-166.66,0.0001457,2]
[419917011,1775505043829,-2062.0,0.00014595,5]
[419917012,1775505043839,-2973.0,0.00014595,5]
[419917013,1775505043849,-152.0,0.00014596,13]
[419917014,1775505043859,-160.0,0.0001461,2]
[419917015,1775505043869,-935.58603614,0.00014658,2]
[419917016,1775505043880,-213.42825389,0.00014689,2]
[419917017,1775505043890,-935.58603614,0.00014712,2]
[419917018,1775505043901,-500.0,0.00014717,2]
[419917019,1775505043911,-2811.0,0.0001472,2]
[419917020,1775505043921,-1573.0,0.0001472,2]
[419917021,1775505043932,-2811.0,0.0001472,2]
[419917022,1775505043942,-2811.0,0.0001472,2]
[419917023,1775505043953,-985.59,0.00014738,2]
[419917024,1775505043963,-520.35317016,0.00014749,2]
[419917025,1775505043973,-935.58603614,0.00014767,2]
[419917026,1775505043983,-810.24,0.00014794,2]
[419917027,1775505043994,-935.58603614,0.00014822,2]
[419917028,1775505044003,-152.0,0.0001483,14]
[419917029,1775505044013,-736.0,0.00014838,2]
[419917030,1775505044024,-935.58603614,0.00014877,2]
[419917031,1775505044034,-935.58603614,0.00014959,2]
[419917032,1775505044045,-500.0,0.00014985,3]
[419917033,1775505044055,-151.0,0.00014985,2]
[419917034,1775505044065,-151.0,0.00014985,2]
[419917035,1775505044075,-151.0,0.00014985,2]
[419917036,1775505044085,-160.827437,0.00014985,2]
[419917037,1775505044095,-151.0,0.00014985,2]
[419917038,1775505044105,-151.0,0.00014985,2]
[419917039,1775505044115,-160.827437,0.00014985,2]
[419917040,1775505044125,-151.0,0.00014985,2]
[419917041,1775505044136,-160.827437,0.00014985,2]
[419917042,1775505044146,-1324.90173,0.00014985,2]
[419917043,1775505044156,-151.0,0.00014985,2]
[419917044,1775505044167,-1324.90173,0.00014985,2]
[419917045,1775505044178,-160.827437,0.00014985,2]
[419917046,1775505044188,-1324.90173,0.00014985,2]
[419917047,1775505044198,-286.269994,0.00014985,2]
[419917048,1775505044208,-1324.90173,0.00014985,2]
[419917049,1775505044218,-286.269994,0.00014985,2]
[419917050,1775505044229,-151.0,0.00014985,2]
[419917051,1775505044240,-286.269994,0.00014985,2]
[419917052,1775505044250,-151.0,0.00014985,2]
[419917053,1775505044259,-286.269994,0.00014985,2]
[419917054,1775505044270,-151.0,0.00014985,2]
[419917055,1775505044280,-524.751898,0.00014985,2]
[419917056,1775505044289,-524.751898,0.00014985,2]
[419917057,1775505044299,-524.751898,0.00014985,2]
[419917058,1775505044309,-524.751898,0.00014985,2]
[419917059,1775505044319,-16233.27765337,0.00014986,2]
[419917060,1775505044329,-501.0,0.00014986,2]
[419917061,1775505044339,-151.0,0.00014997,2]
[419917062,1775505044349,-500.0,0.00014999,2]
[419917063,1775505044359,-300.0,0.00015,2]
[419917064,1775505044370,-150.0,0.00015,7]
[419917065,1775505044379,-1038.983212,0.00015,2]
[419917066,1775505044388,-1038.983212,0.00015,2]
[419917067,1775505044398,-305.126816,0.00015,2]
[419917068,1775505044408,-1715.941805,0.00015,2]
[419917069,1775505044418,-151.0,0.00015,2]
[419917070,1775505044427,-1038.983212,0.00015,2]
[419917071,1775505044436,-305.126816,0.00015,2]
[419917072,1775505044447,-268.8,0.00015,2]
[419917073,1775505044457,-1715.941805,0.00015,2]
[419917074,1775505044467,-151.0,0.00015,2]
[419917075,1775505044477,-1038.983212,0.00015,2]
[419917076,1775505044486,-268.8,0.00015,2]
[419917077,1775505044495,-305.126816,0.00015,2]
[419917078,1775505044505,-1715.941805,0.00015,2]
[419917079,1775505044515,-151.0,0.00015,2]
[419917080,1775505044525,-151.0,0.00015,2]
[419917081,1775505044534,-553.482395,0.00015,2]
[419917082,1775505044544,-305.126816,0.00015,2]
[419917083,1775505044554,-1715.941805,0.00015,2]
[419917084,1775505044564,-268.8,0.00015,2]
[419917085,1775505044574,-151.0,0.00015,2]
[419917086,1775505044584,-151.0,0.00015,2]
[419917087,1775505044594,-151.0,0.00015,2]
[419917088,1775505044604,-553.482395,0.00015,2]
[419917089,1775505044613,-488.291621,0.00015,2]
[419917090,1775505044623,-268.8,0.00015,2]
[419917091,1775505044633,-151.0,0.00015,2]
[419917092,1775505044643,-553.482395,0.00015,2]
[419917093,1775505044653,-488.291621,0.00015,2]
[419917094,1775505044663,-151.0,0.00015,2]
[419917095,1775505044673,-232.534013,0.00015,2]
[419917096,1775505044683,-553.482395,0.00015,2]
[419917097,1775505044693,-1550.160643,0.00015,2]
[419917098,1775505044704,-151.0,0.00015,2]
[419917099,1775505044714,-232.534013,0.00015,2]
[419917100,1775505044724,-151.0,0.00015,2]
[419917101,1775505044734,-1550.160643,0.00015,2]
[419917102,1775505044745,-151.0,0.00015,2]
[419917103,1775505044755,-488.291621,0.00015,2]
[419917104,1775505045077,-232.534013,0.00015,2]
[419917105,1775505045087,-151.0,0.00015,2]
[419917106,1775505045097,-1550.160643,0.00015,2]
[419917107,1775505045107,-151.0,0.00015,2]
[419917108,1775505045118,-151.0,0.00015,2]
[419917109,1775505045129,-232.534013,0.00015,2]